fUSD/lending_fUSD_20240423
["ID","MTS","AMOUNT","RATE_DAILY","PERIOD"]
[323260153,1713856243242,-500.0,0.00011998,2]
[323260155,1713856243251,-861.93,0.00011998,2]
[323260157,1713856243260,-1197.56,0.00011998,2]
[323260160,1713856243270,-500.0,0.00011998,2]
[323260162,1713856243279,-1190.67,0.00011998,2]
[323260164,1713856243288,-500.0,0.00011998,2]
[323260166,1713856243297,-500.0,0.00011998,2]
[323260167,1713856243306,-517.71749136,0.00011998,2]
[323260169,1713856243315,-500.0,0.00011998,2]
[323260171,1713856243324,-500.0,0.00011998,2]
[323260173,1713856243333,-520.88164261,0.00011998,2]
[323260175,1713856243342,-500.0,0.00011998,2]
[323260178,1713856243352,-500.0,0.00011998,2]
[323260180,1713856243363,-1137.13,0.00011998,2]
[323260182,1713856243372,-500.0,0.00011998,2]
[323260184,1713856243381,-177.17,0.00011998,2]
[323260186,1713856243391,-500.0,0.00011998,2]
[323260188,1713856243400,-986.84,0.00011998,2]
[323260190,1713856243410,-500.0,0.00011998,2]
[323260192,1713856243419,-500.0,0.00011998,2]
[323260194,1713856243429,-45858.57,0.00011998,2]
[323260196,1713856243438,-500.0,0.00011998,2]
[323260198,1713856243447,-501.35492506,0.00011998,2]
[323260200,1713856243456,-500.0,0.00011998,2]
[323260201,1713856243465,-500.0,0.00011998,2]
[323260203,1713856243475,-500.0,0.00011998,2]
[323260205,1713856243484,-501.37179699,0.00011998,2]
[323260207,1713856243494,-500.0,0.00011998,2]
[323260209,1713856243503,-506.80469944,0.00011998,2]
[323260211,1713856243513,-179.98335494,0.00011998,2]
[323260214,1713856243522,-4347.94,0.00011998,2]
[323260216,1713856243531,-500.0,0.00011998,2]
[323260218,1713856243540,-500.0,0.00011998,2]
[323260220,1713856243551,-500.0,0.00011998,2]
[323260222,1713856243560,-504.20659731,0.00011998,2]
[323260224,1713856243568,-3354.74,0.00011998,2]
[323260226,1713856243577,-515.88294832,0.00011998,2]
[323260228,1713856243586,-4037.05,0.00011998,2]
[323260230,1713856243595,-500.0,0.00011998,2]
[323260232,1713856243604,-500.0,0.00011998,2]
[323260234,1713856243615,-500.0,0.00011998,2]
[323260236,1713856243624,-500.0,0.00011998,2]
[323260238,1713856243634,-500.0,0.00011998,2]
[323260240,1713856243644,-500.33238296,0.00011998,2]
[323260242,1713856243653,-500.0,0.00011998,2]
[323260244,1713856243663,-865.97,0.00011998,2]
[323260246,1713856243672,-783.29,0.00011998,2]
[323260248,1713856243681,-500.0,0.00011998,2]
[323260250,1713856243689,-500.0,0.00011998,2]
[323260252,1713856243699,-501.34966844,0.00011998,2]
[323260254,1713856243707,-500.0,0.00011998,2]
[323260256,1713856243718,-500.0,0.00011998,2]
[323260258,1713856243727,-1098.3,0.00011998,2]
[323260260,1713856243737,-500.0,0.00011998,2]
[323260262,1713856243747,-500.0,0.00011998,2]
[323260264,1713856243757,-500.0,0.00011998,2]
[323260266,1713856243766,-500.0,0.00011998,2]
[323260268,1713856243775,-500.0,0.00011998,2]
[323260270,1713856243784,-500.0,0.00011998,2]
[323260272,1713856243793,-500.0,0.00011998,2]
[323260274,1713856243802,-500.0,0.00011998,2]
[323260276,1713856243811,-500.0,0.00011998,2]
[323260278,1713856243820,-654.88,0.00011998,2]
[323260280,1713856243830,-500.0,0.00011998,2]
[323260282,1713856243839,-11368.55,0.00011998,2]
[323260284,1713856243848,-621.0,0.00011998,2]
[323260286,1713856243859,-500.0,0.00011998,2]
[323260288,1713856243867,-500.0,0.00011998,2]
[323260290,1713856243876,-500.0,0.00011998,2]
[323260292,1713856243886,-500.0,0.00011998,2]
[323260295,1713856243895,-500.0,0.00011998,2]
[323260296,1713856243904,-500.0,0.00011998,2]
[323260298,1713856243913,-164.68478917,0.00011998,2]
[323260301,1713856243923,-500.0,0.00011998,2]
[323260303,1713856243931,-500.0,0.00011998,2]
[323260305,1713856243941,-509.14764831,0.00011998,2]
[323260307,1713856243950,-500.0,0.00011998,2]
[323260309,1713856243959,-343.18332461,0.00011998,2]
[323260311,1713856243967,-500.0,0.00011998,2]
[323260313,1713856243977,-389.3252772,0.00011998,2]
[323260315,1713856243990,-500.0,0.00011998,2]
[323260317,1713856243999,-507.57851529,0.00011998,2]
[323260319,1713856244008,-500.0,0.00011998,2]
[323260321,1713856244017,-1697.34,0.00011998,2]
[323260322,1713856244026,-500.0,0.00011998,2]
[323260325,1713856244035,-518.85998052,0.00011998,2]
[323260327,1713856244045,-508.48167479,0.00011998,2]
[323260329,1713856244054,-500.0,0.00011998,2]
[323260330,1713856244065,-500.0,0.00011998,2]
[323260332,1713856244075,-500.0,0.00011998,2]
[323260333,1713856244084,-24.44865604,0.00011998,2]
[323260334,1713856244127,-475.55134396,0.00011998,2]
[323260335,1713856244137,-500.0,0.00011998,2]
[323260337,1713856244146,-65400.71,0.00011998,2]
[323260339,1713856244155,-500.0,0.00011998,2]
[323260341,1713856244164,-937.9,0.00011998,2]
[323260343,1713856244172,-500.0,0.00011998,2]
[323260345,1713856244182,-500.0,0.00011998,2]
[323260347,1713856244191,-500.0,0.00011998,2]
[323260349,1713856244200,-500.0,0.00011998,2]
[323260351,1713856244209,-500.0,0.00011998,2]
[323260353,1713856244218,-500.0,0.00011998,2]
[323260355,1713856244227,-500.0,0.00011998,2]
[323260357,1713856244237,-6909.02,0.00011998,2]
[323260367,1713856244246,-271.15125276,0.00011998,2]
[323260369,1713856244324,-501.59529358,0.00011998,2]
[323260371,1713856244333,-551.77092559,0.00011998,2]
[323260373,1713856244345,-506.88844948,0.00011998,2]
[323260375,1713856244354,-500.0,0.00011998,2]
[323260377,1713856244364,-500.0,0.00011998,2]
[323260379,1713856244373,-624.23011509,0.00011998,2]
[323260381,1713856244382,-505.44901685,0.00011998,2]
[323260383,1713856244391,-500.0,0.00011998,2]
[323260385,1713856244400,-552.56795361,0.00011998,2]
[323260387,1713856244409,-500.0,0.00011998,2]
[323260389,1713856244418,-544.76,0.00011998,2]
[323260391,1713856244428,-500.0,0.00011998,2]
[323260393,1713856244437,-500.0,0.00011998,2]
[323260395,1713856244446,-500.0,0.00011998,2]
[323260397,1713856244455,-500.0,0.00011998,2]
[323260399,1713856244464,-500.0,0.00011998,2]
[323260401,1713856244473,-500.0,0.00011998,2]
[323260403,1713856244482,-500.0,0.00011998,2]
[323260405,1713856244491,-500.0,0.00011998,2]
[323260407,1713856244500,-500.0,0.00011998,2]
[323260409,1713856244509,-500.0,0.00011998,2]
[323260411,1713856244518,-500.0,0.00011998,2]
[323260413,1713856244527,-500.0,0.00011998,2]
[323260415,1713856244536,-500.0,0.00011998,2]
[323260417,1713856244549,-500.0,0.00011998,2]
[323260419,1713856244558,-500.0,0.00011998,2]
[323260421,1713856244567,-500.0,0.00011998,2]
[323260423,1713856244576,-1136.66,0.00011998,2]
[323260425,1713856244585,-504.81438558,0.00011998,2]
[323260427,1713856244594,-500.0,0.00011998,2]
[323260429,1713856244602,-7581.25,0.00011998,2]
[323260431,1713856244613,-500.0,0.00011998,2]
[323260433,1713856244622,-303.55852269,0.00011998,2]
[323260435,1713856244631,-500.0,0.00011998,2]
[323260437,1713856244639,-1176.56,0.00011998,2]
[323260439,1713856244649,-500.0,0.00011998,2]
[323260441,1713856244658,-276.38948885,0.00011998,2]
[323260443,1713856244666,-500.0,0.00011998,2]
[323260445,1713856244674,-500.0,0.00011998,2]
[323260447,1713856244683,-500.0,0.00011998,2]
[323260449,1713856244692,-500.0,0.00011998,2]
[323260451,1713856244702,-500.0,0.00011998,2]
[323260452,1713856244711,-500.0,0.00011998,2]
[323260454,1713856244720,-2625.69,0.00011998,2]
[323260456,1713856244729,-500.0,0.00011998,2]
[323260458,1713856244738,-500.0,0.00011998,2]
[323260459,1713856244747,-500.0,0.00011998,2]
[323260461,1713856244756,-500.0,0.00011998,2]
[323260463,1713856244765,-500.0,0.00011998,2]
[323260465,1713856244774,-670.43,0.00011998,2]
[323260467,1713856244784,-500.0,0.00011998,2]
[323260469,1713856244793,-500.0,0.00011998,2]
[323260471,1713856244802,-4093.31,0.00011998,2]
[323260473,1713856244811,-1075.83,0.00011998,2]
[323260475,1713856244820,-500.0,0.00011998,2]
[323260477,1713856244829,-508.20852727,0.00011998,2]
[323260479,1713856244838,-503.42029911,0.00011998,2]
[323260480,1713856244847,-3326.69,0.00011998,2]
[323260482,1713856244856,-500.0,0.00011998,2]
[323260484,1713856244867,-500.0,0.00011998,2]
[323260486,1713856244876,-500.0,0.00011998,2]
[323260488,1713856244885,-500.0,0.00011998,2]
[323260490,1713856244893,-503.57203334,0.00011998,2]
[323260492,1713856244903,-658.23,0.00011998,2]
[323260494,1713856244911,-500.0,0.00011998,2]
[323260496,1713856244920,-500.0,0.00011998,2]
[323260498,1713856244930,-502.05352796,0.00011998,2]
[323260500,1713856244939,-500.0,0.00011998,2]
[323260502,1713856244948,-500.0,0.00011998,2]
[323260504,1713856244957,-500.0,0.00011998,2]
[323260506,1713856244966,-10849.65,0.00011998,2]
[323260508,1713856244975,-500.0,0.00011998,2]
[323260509,1713856244985,-500.0,0.00011998,2]
[323260511,1713856244995,-503.62066707,0.00011998,2]
[323260513,1713856245004,-500.0,0.00011998,2]
[323260515,1713856245014,-500.0,0.00011998,2]
[323260517,1713856245023,-505.44520656,0.00011998,2]
[323260519,1713856245033,-500.0,0.00011998,2]
[323260521,1713856245042,-500.0,0.00011998,2]
[323260523,1713856245051,-1933.92,0.00011998,2]
[323260525,1713856245060,-500.0,0.00011998,2]
[323260527,1713856245070,-500.0,0.00011998,2]
[323260529,1713856245081,-500.0,0.00011998,2]
[323260531,1713856245091,-877.56,0.00011998,2]
[323260533,1713856245100,-962.26,0.00011998,2]
[323260535,1713856245110,-500.0,0.00011998,2]
[323260537,1713856245120,-500.0,0.00011998,2]
[323260539,1713856245129,-503.80924203,0.00011998,2]
[323260541,1713856245138,-500.0,0.00011998,2]
[323260543,1713856245148,-500.0,0.00011998,2]
[323260545,1713856245158,-500.0,0.00011998,2]
[323260547,1713856245167,-2774.94,0.00011998,2]
[323260549,1713856245177,-329.94745963,0.00011998,2]
[323260551,1713856245186,-500.0,0.00011998,2]
[323260553,1713856245195,-500.0,0.00011998,2]
[323260555,1713856245204,-500.0,0.00011998,2]
[323260557,1713856245214,-844.27,0.00011998,2]
[323260559,1713856245223,-500.0,0.00011998,2]
[323260561,1713856245232,-521.52988785,0.00011998,2]
[323260563,1713856245241,-1708.63,0.00011998,2]
[323260565,1713856245251,-500.0,0.00011998,2]
[323260567,1713856245260,-506.23502245,0.00011998,2]
[323260569,1713856245272,-4479.55,0.00011998,2]
[323260571,1713856245281,-500.27092677,0.00011998,2]
[323260572,1713856245290,-503.60266833,0.00011998,2]
[323260573,1713856245299,-500.0,0.00011998,2]
[323260574,1713856245307,-500.0,0.00011998,2]
[323260575,1713856245316,-500.0,0.00011998,2]
[323260576,1713856245325,-644.12,0.00011998,2]
[323260577,1713856245334,-500.0,0.00011998,2]
[323260578,1713856245343,-500.0,0.00011998,2]
[323260579,1713856245352,-565.44034821,0.00011998,2]
[323260580,1713856245362,-500.0,0.00011998,2]
[323260581,1713856245371,-805.4,0.00011998,2]
[323260583,1713856245381,-500.0,0.00011998,2]
[323260585,1713856245390,-513.83446016,0.00011998,2]
[323260587,1713856245399,-500.0,0.00011998,2]
[323260589,1713856245407,-500.0,0.00011998,2]
[323260591,1713856245416,-500.0,0.00011998,2]
[323260593,1713856245425,-503.86687451,0.00011998,2]
[323260595,1713856245434,-1316.39,0.00011998,2]
[323260597,1713856245443,-1012.28,0.00011998,2]
[323260599,1713856245452,-500.0,0.00011998,2]
[323260601,1713856245462,-500.0,0.00011998,2]
[323260603,1713856245470,-503.97654744,0.00011998,2]
[323260605,1713856245480,-500.0,0.00011998,2]
[323260607,1713856245489,-500.0,0.00011998,2]
[323260609,1713856245498,-503.78510687,0.00011998,2]
[323260611,1713856245507,-791.95,0.00011998,2]
[323260613,1713856245517,-648.8,0.00011998,2]
[323260615,1713856245526,-588.23,0.00011998,2]
[323260617,1713856245535,-500.0,0.00011998,2]
[323260619,1713856245544,-502.36542532,0.00011998,2]
[323260621,1713856245553,-500.0,0.00011998,2]
[323260623,1713856245563,-500.0,0.00011998,2]
[323260625,1713856245572,-500.0,0.00011998,2]
[323260627,1713856245581,-2919.11,0.00011998,2]
[323260629,1713856245590,-500.0,0.00011998,2]
[323260631,1713856245599,-500.0,0.00011998,2]
[323260633,1713856245609,-506.65730338,0.00011998,2]
[323260635,1713856245619,-500.0,0.00011998,2]
[323260637,1713856245629,-500.0,0.00011998,2]
[323260639,1713856245638,-500.0,0.00011998,2]
[323260641,1713856245648,-500.0,0.00011998,2]
[323260643,1713856245656,-165.30148638,0.00011998,2]
[323260645,1713856245665,-4725.17,0.00011998,2]
[323260647,1713856245675,-500.0,0.00011998,2]
[323260649,1713856245684,-500.0,0.00011998,2]
[323260651,1713856245693,-500.0,0.00011998,2]
[323260653,1713856245703,-459.70189729,0.00011998,2]
[323260655,1713856245713,-2547.1,0.00011998,2]
[323260657,1713856245722,-500.0,0.00011998,2]
[323260659,1713856245731,-500.0,0.00011998,2]
[323260662,1713856245740,-500.0,0.00011998,2]
[323260664,1713856245749,-500.0,0.00011998,2]
[323260666,1713856245759,-1000.0,0.00011998,2]
[323260668,1713856245768,-500.0,0.00011998,2]
[323260670,1713856245777,-500.0,0.00011998,2]
[323260672,1713856245786,-500.0,0.00011998,2]
[323260675,1713856245796,-500.0,0.00011998,2]
[323260677,1713856245805,-500.0,0.00011998,2]
[323260679,1713856245814,-500.0,0.00011998,2]
[323260682,1713856245825,-500.0,0.00011998,2]
[323260684,1713856245834,-500.0,0.00011998,2]
[323260686,1713856245844,-500.0,0.00011998,2]
[323260688,1713856245854,-500.0,0.00011998,2]
[323260690,1713856245865,-514.68,0.00011998,2]
[323260692,1713856245875,-3732.64,0.00011998,2]
[323260694,1713856245885,-617.1,0.00011998,2]
[323260696,1713856245895,-12133.16,0.00011998,2]
[323260698,1713856245904,-504.6729338,0.00011998,2]
[323260701,1713856245913,-500.0,0.00011998,2]
[323260704,1713856245924,-500.0,0.00011998,2]
[323260707,1713856245933,-500.0,0.00011998,2]
[323260709,1713856245944,-412.42427579,0.00011998,2]
[323260711,1713856245954,-632.62,0.00011998,2]
[323260713,1713856245964,-500.0,0.00011998,2]
[323260715,1713856245973,-500.0,0.00011998,2]
[323260717,1713856245984,-500.0,0.00011998,2]
[323260719,1713856245994,-501.17833952,0.00011998,2]
[323260721,1713856246003,-500.0,0.00011998,2]
[323260723,1713856246013,-500.0,0.00011998,2]
[323260724,1713856246022,-500.0,0.00011998,2]
[323260727,1713856246032,-649.80931883,0.00011998,2]
[323260729,1713856246041,-500.0,0.00011998,2]
[323260731,1713856246052,-1973.57,0.00011998,2]
[323260732,1713856246062,-500.0,0.00011998,2]
[323260734,1713856246072,-500.0,0.00011998,2]
[323260736,1713856246082,-500.0,0.00011998,2]
[323260738,1713856246091,-500.0,0.00011998,2]
[323260741,1713856246101,-626.27,0.00011998,2]
[323260743,1713856246111,-503.17990767,0.00011998,2]
[323260745,1713856246120,-628.77,0.00011998,2]
[323260747,1713856246130,-500.0,0.00011998,2]
[323260749,1713856246139,-500.0,0.00011998,2]
[323260751,1713856246148,-500.0,0.00011998,2]
[323260753,1713856246158,-648.37,0.00011998,2]
[323260755,1713856246168,-500.0,0.00011998,2]
[323260757,1713856246177,-470.78465974,0.00011998,2]
[323260759,1713856246186,-500.0,0.00011998,2]
[323260761,1713856246195,-500.0,0.00011998,2]
[323260763,1713856246205,-500.0,0.00011998,2]
[323260765,1713856246214,-500.0,0.00011998,2]
[323260767,1713856246223,-1001.42,0.00011998,2]
[323260769,1713856246233,-500.0,0.00011998,2]
[323260771,1713856246243,-594.8,0.00011998,2]
[323260773,1713856246252,-540.63650867,0.00011998,2]
[323260775,1713856246264,-505.97384261,0.00011998,2]
[323260777,1713856246274,-1347.89,0.00011998,2]
[323260779,1713856246283,-500.0,0.00011998,2]
[323260781,1713856246292,-500.0,0.00011998,2]
[323260783,1713856246302,-500.0,0.00011998,2]
[323260785,1713856246311,-502.84796966,0.00011998,2]
[323260787,1713856246320,-4481.21,0.00011998,2]
[323260789,1713856246330,-500.0,0.00011998,2]
[323260791,1713856246339,-503.99561726,0.00011998,2]
[323260793,1713856246348,-656.81,0.00011998,2]
[323260795,1713856246357,-500.0,0.00011998,2]
[323260797,1713856246368,-509.0078748,0.00011998,2]
[323260799,1713856246377,-500.0,0.00011998,2]
[323260801,1713856246387,-500.0,0.00011998,2]
[323260803,1713856246396,-1514.94,0.00011998,2]
[323260805,1713856246406,-500.0,0.00011998,2]
[323260806,1713856246415,-500.0,0.00011998,2]
[323260807,1713856246425,-500.0,0.00011998,2]
[323260808,1713856246434,-6614.55211703,0.00011998,2]
[323260809,1713856246451,-2929.92869245,0.00011998,2]
[323260912,1713856247777,-22011.11919052,0.00011998,2]
[323260913,1713856247787,-628.79,0.00011998,2]
[323260914,1713856247796,-627.34,0.00011998,2]
[323260916,1713856247805,-500.0,0.00011998,2]
[323260917,1713856247814,-500.0,0.00011998,2]
[323260919,1713856247823,-500.0,0.00011998,2]
[323260921,1713856247832,-576.94102538,0.00011998,2]
[323260923,1713856247841,-504.15316912,0.00011998,2]
[323260925,1713856247849,-501.11205328,0.00011998,2]
[323260926,1713856247859,-390.67901795,0.00011998,2]
[323260929,1713856247882,-109.32098205,0.00011998,2]
[323260931,1713856247892,-500.0,0.00011998,2]
[323260933,1713856247901,-239.13901795,0.00011999,2]
[323260936,1713856247912,-539.51643098,0.00011999,2]
[323260939,1713856247930,-1242.49860939,0.00011999,2]
[323260941,1713856247939,-347.00139061,0.00011999,2]
[323260944,1713856247965,-208.01297521,0.00011999,2]
[323260946,1713856247974,-194.93623668,0.00011999,2]
[323260951,1713856248015,-311.06409002,0.00011999,2]
[323260953,1713856248024,-504.40552321,0.00011999,2]
[323260956,1713856248034,-313.63868604,0.00011999,2]
[323260992,1713856248373,298.71922923,0.00011039,2]
[323261021,1713856248629,-257.70065742,0.00011997,2]
[323261023,1713856248640,-242.29934258,0.00011997,2]
[323261025,1713856248650,-518.49772326,0.00011997,2]
[323261027,1713856248659,-186.36131396,0.00011999,2]
[323261029,1713856248668,-500.0,0.00011999,2]
[323261031,1713856248677,-500.0,0.00011999,2]
[323261033,1713856248686,-502.37764879,0.00011999,2]
[323261035,1713856248695,-502.2558051,0.00011999,2]
[323261037,1713856248704,-551.7,0.00011999,2]
[323261039,1713856248713,-500.0,0.00011999,2]
[323261041,1713856248722,-500.0,0.00011999,2]
[323261043,1713856248731,-472.65229047,0.00011999,2]
[323261045,1713856248740,-500.0,0.00011999,2]
[323261047,1713856248749,-500.0,0.00011999,2]
[323261049,1713856248758,-500.0,0.00011999,2]
[323261051,1713856248767,-500.0,0.00011999,2]
[323261053,1713856248777,-500.0,0.00011999,2]
[323261055,1713856248786,-500.0,0.00011999,2]
[323261057,1713856248795,-500.0,0.00011999,2]
[323261059,1713856248805,-500.0,0.00011999,2]
[323261061,1713856248814,-557.69241897,0.00011999,2]
[323261063,1713856248823,-501.11133732,0.00011999,2]
[323261065,1713856248832,-638.85,0.00011999,2]
[323261067,1713856248842,-500.0,0.00011999,2]
[323261070,1713856248851,-500.0,0.00011999,2]
[323261072,1713856248860,-500.0,0.00011999,2]
[323261073,1713856248870,-504.15188284,0.00011999,2]
[323261075,1713856248879,-500.0,0.00011999,2]
[323261077,1713856248889,-500.0,0.00011999,2]
[323261079,1713856248900,-500.0,0.00011999,2]
[323261082,1713856248910,-500.0,0.00011999,2]
[323261083,1713856248919,-500.0,0.00011999,2]
[323261087,1713856248938,-1170.02,0.00011999,2]
[323261089,1713856248948,-503.37830806,0.00011999,2]
[323261091,1713856248958,-506.10956096,0.00011999,2]
[323261093,1713856248967,-500.0,0.00011999,2]
[323261095,1713856248977,-500.0,0.00011999,2]
[323261097,1713856248989,-500.0,0.00011999,2]
[323261099,1713856248998,-500.0,0.00011999,2]
[323261101,1713856249008,-500.0,0.00011999,2]
[323261103,1713856249017,-500.0,0.00011999,2]
[323261105,1713856249026,-500.0,0.00011999,2]
[323261107,1713856249036,-500.0,0.00011999,2]
[323261109,1713856249045,-510.44331447,0.00011999,2]
[323261111,1713856249056,-1175.21,0.00011999,2]
[323261113,1713856249065,-500.0,0.00011999,2]
[323261115,1713856249075,-500.0,0.00011999,2]
[323261117,1713856249085,-500.0,0.00011999,2]
[323261119,1713856249094,-500.0,0.00011999,2]
[323261121,1713856249103,-500.0,0.00011999,2]
[323261123,1713856249113,-500.0,0.00011999,2]
[323261125,1713856249122,-500.0,0.00011999,2]
[323261127,1713856249132,-500.0,0.00011999,2]
[323261129,1713856249141,-500.0,0.00011999,2]
[323261131,1713856249151,-500.0,0.00011999,2]
[323261133,1713856249160,-500.0,0.00011999,2]
[323261135,1713856249170,-1047.8,0.00011999,2]
[323261137,1713856249179,-500.0,0.00011999,2]
[323261139,1713856249189,-500.0,0.00011999,2]
[323261141,1713856249198,-367.90577902,0.00011999,2]
[323261143,1713856249207,-942.06,0.00011999,2]
[323261145,1713856249216,-500.0,0.00011999,2]
[323261147,1713856249225,-500.0,0.00011999,2]
[323261149,1713856249236,-500.0,0.00011999,2]
[323261151,1713856249245,-601.75,0.00011999,2]
[323261153,1713856249256,-500.0,0.00011999,2]
[323261155,1713856249265,-509.99,0.00011999,2]
[323261157,1713856249275,-500.0,0.00011999,2]
[323261159,1713856249284,-518.31464549,0.00011999,2]
[323261161,1713856249293,-1470.03,0.00011999,2]
[323261163,1713856249302,-204.03582892,0.00011999,2]
[323261165,1713856249312,-500.0,0.00011999,2]
[323261168,1713856249321,-500.0,0.00011999,2]
[323261169,1713856249330,-500.0,0.00011999,2]
[323261172,1713856249340,-902.98,0.00011999,2]
[323261173,1713856249349,-500.0,0.00011999,2]
[323261175,1713856249358,-500.0,0.00011999,2]
[323261177,1713856249368,-500.0,0.00011999,2]
[323261179,1713856249378,-500.0,0.00011999,2]
[323261182,1713856249387,-500.0,0.00011999,2]
[323261183,1713856249397,-500.0,0.00011999,2]
[323261185,1713856249407,-500.0,0.00011999,2]
[323261188,1713856249416,-500.0,0.00011999,2]
[323261190,1713856249425,-500.0,0.00011999,2]
[323261191,1713856249434,-500.0,0.00011999,2]
[323261192,1713856249443,-500.0,0.00011999,2]
[323261193,1713856249452,-1073.89,0.00011999,2]
[323261194,1713856249462,-508.24320694,0.00011999,2]
[323261195,1713856249471,-500.0,0.00011999,2]
[323261196,1713856249480,-500.0,0.00011999,2]
[323261197,1713856249489,-500.0,0.00011999,2]
[323261198,1713856249498,-500.0,0.00011999,2]
[323261199,1713856249507,-500.0,0.00011999,2]
[323261201,1713856249516,-535.16,0.00011999,2]
[323261203,1713856249525,-500.0,0.00011999,2]
[323261205,1713856249534,-500.0,0.00011999,2]
[323261207,1713856249544,-500.0,0.00011999,2]
[323261209,1713856249552,-500.0,0.00011999,2]
[323261211,1713856249561,-500.0,0.00011999,2]
[323261213,1713856249570,-500.0,0.00011999,2]
[323261215,1713856249580,-500.0,0.00011999,2]
[323261217,1713856249589,-500.0,0.00011999,2]
[323261219,1713856249599,-500.0,0.00011999,2]
[323261221,1713856249608,-507.44910576,0.00011999,2]
[323261223,1713856249619,-501.60492537,0.00011999,2]
[323261225,1713856249628,-502.62340167,0.00011999,2]
[323261227,1713856249637,-500.0,0.00011999,2]
[323261229,1713856249647,-500.0,0.00011999,2]
[323261231,1713856249656,-500.0,0.00011999,2]
[323261233,1713856249665,-500.0,0.00011999,2]
[323261235,1713856249675,-500.0,0.00011999,2]
[323261237,1713856249684,-563.66122847,0.00011999,2]
[323261239,1713856249693,-500.0,0.00011999,2]
[323261242,1713856249703,-506.36895933,0.00011999,2]
[323261244,1713856249712,-500.0,0.00011999,2]
[323261246,1713856249721,-500.0,0.00011999,2]
[323261248,1713856249730,-500.0,0.00011999,2]
[323261250,1713856249739,-500.0,0.00011999,2]
[323261252,1713856249748,-500.0,0.00011999,2]
[323261254,1713856249757,-500.0,0.00011999,2]
[323261256,1713856249766,-500.0,0.00011999,2]
[323261258,1713856249775,-500.0,0.00011999,2]
[323261260,1713856249785,-500.0,0.00011999,2]
[323261262,1713856249794,-718.07,0.00011999,2]
[323261264,1713856249804,-910.27,0.00011999,2]
[323261266,1713856249813,-641.15,0.00011999,2]
[323261268,1713856249822,-500.0,0.00011999,2]
[323261269,1713856249832,-500.0,0.00011999,2]
[323261272,1713856249842,-678.17,0.00011999,2]
[323261274,1713856249852,-500.0,0.00011999,2]
[323261276,1713856249861,-500.0,0.00011999,2]
[323261278,1713856249871,-500.0,0.00011999,2]
[323261280,1713856249880,-1080.12,0.00011999,2]
[323261282,1713856249890,-500.0,0.00011999,2]
[323261284,1713856249899,-500.0,0.00011999,2]
[323261286,1713856249909,-500.0,0.00011999,2]
[323261288,1713856249918,-500.0,0.00011999,2]
[323261290,1713856249927,-500.0,0.00011999,2]
[323261292,1713856249936,-500.0,0.00011999,2]
[323261294,1713856249945,-617.9038109,0.00011999,2]
[323261296,1713856249955,-500.0,0.00011999,2]
[323261298,1713856249964,-500.0,0.00011999,2]
[323261300,1713856249973,-1210.46,0.00011999,2]
[323261302,1713856249984,-504.41658268,0.00011999,2]
[323261304,1713856249995,-500.0,0.00011999,2]
[323261306,1713856250005,-500.0,0.00011999,2]